fUST/lending_fUST_20240321
["ID","MTS","AMOUNT","RATE_DAILY","PERIOD"]
[319840109,1710991746436,-500.0,0.00052799,120]
[319840110,1710991746458,-500.0,0.00052799,120]
[319840111,1710991746480,-500.0,0.00052799,120]
[319840112,1710991746502,-709.38,0.00052799,120]
[319840113,1710991746523,-298.82753262,0.00052799,2]
[319840114,1710991746546,-481.9671792,0.00052799,120]
[319840115,1710991746567,-300.18974684,0.00052799,2]
[319840116,1710991746586,-500.0,0.00052799,120]
[319840117,1710991746606,-500.0,0.00052799,120]
[319840118,1710991746626,-500.0,0.00052799,120]
[319840119,1710991746646,-151.0,0.00052799,120]
[319840120,1710991746666,-592.03652191,0.00052799,120]
[319840121,1710991746686,-502.78,0.00052799,60]
[319840122,1710991746706,-500.0,0.00052799,120]
[319840123,1710991746726,-512.17143991,0.00052799,120]
[319840124,1710991746745,-500.0,0.00052799,2]
[319840125,1710991746765,-500.0,0.00052799,120]
[319840126,1710991746784,-500.0,0.00052799,120]
[319840127,1710991746805,-320.56927828,0.00052799,120]
[319840128,1710991746824,-500.0,0.00052799,120]
[319840129,1710991746844,-21314.99693288,0.00052799,4]
[319840130,1710991746863,-975.21,0.00052799,120]
[319840131,1710991746882,-500.0,0.00052799,120]
[319840132,1710991746902,-500.0,0.00052799,120]
[319840133,1710991746921,-500.0,0.00052799,120]
[319840134,1710991746941,-500.0,0.00052799,120]
[319840135,1710991746962,-1384.4,0.00052799,120]
[319840136,1710991746982,-5020.55,0.00052799,120]
[319840137,1710991747002,-500.0,0.00052799,120]
[319840138,1710991747021,-500.0,0.00052799,120]
[319840139,1710991747041,-263.90515874,0.00052799,120]
[319840140,1710991747062,-615.04,0.00052799,120]
[319840141,1710991747082,-12624.50900065,0.00052799,4]
[319840142,1710991747102,-1777.47,0.00052799,120]
[319840143,1710991747122,-500.0,0.00052799,120]
[319840144,1710991747142,-1119.91,0.00052799,120]
[319840145,1710991747162,-500.0,0.00052799,120]
[319840146,1710991747182,-500.0,0.00052799,120]
[319840147,1710991747201,-500.0,0.00052799,120]
[319840148,1710991747221,-1915.32,0.00052799,120]
[319840149,1710991747242,-1058.62,0.00052799,120]
[319840150,1710991747262,-500.0,0.00052799,120]
[319840151,1710991747281,-2370.85,0.00052799,120]
[319840152,1710991747302,-200.7097896,0.00052799,120]
[319840153,1710991747321,-500.0,0.00052799,120]
[319840154,1710991747342,-2240.83,0.00052799,120]
[319840155,1710991747361,-1126.81,0.00052799,120]
[319840156,1710991747381,-162.73374899,0.00052799,120]
[319840157,1710991747401,-3699.06,0.00052799,90]
[319840158,1710991747421,-500.0,0.00052799,120]
[319840159,1710991747441,-269.28797849,0.00052799,120]
[319840160,1710991747461,-6335.83,0.00052799,120]
[319840161,1710991747484,-500.0,0.00052799,120]
[319840162,1710991747504,-759.89,0.00052799,120]
[319840163,1710991747524,-500.0,0.00052799,120]
[319840164,1710991747544,-500.0,0.00052799,120]
[319840165,1710991747565,-500.0,0.00052799,120]
[319840166,1710991747584,-500.0,0.00052799,120]
[319840167,1710991747604,-480.60030887,0.00052799,120]
[319840168,1710991747624,-500.0,0.00052799,120]
[319840169,1710991747645,-978.46,0.00052799,120]
[319840170,1710991747665,-500.0,0.00052799,120]
[319840171,1710991747686,-188026.49413301,0.000528,2]
[319840172,1710991750179,-81458.09203883,0.000528,2]
[319840173,1710991750199,-312.33944924,0.00052899,60]
[319840174,1710991750218,-202.30651102,0.00052899,4]
[319840175,1710991750237,-373.73013543,0.00052899,120]
[319840176,1710991750256,-500.0,0.00052899,120]
[319840177,1710991750275,-500.9925589,0.00052899,120]
[319840178,1710991750294,-500.0,0.00052899,120]
[319840179,1710991750314,-512.38477909,0.00052899,120]
[319840180,1710991750333,-500.0,0.00052899,120]
[319840181,1710991750353,-500.0,0.00052899,120]
[319840182,1710991750371,-413.28519978,0.00052899,120]
[319840183,1710991750390,-500.0,0.00052899,120]
[319840184,1710991750409,-573.4816901,0.00052899,120]
[319840185,1710991750428,-500.0,0.00052899,120]
[319840186,1710991750448,-61315.29697761,0.000529,30]
[319840187,1710991759109,-502.24447583,0.00052799,120]
[319840188,1710991759129,-934.57,0.00052799,120]
[319840189,1710991759149,-1326.72,0.00052799,120]
[319840190,1710991759169,-248.83661094,0.00052899,2]
[319840191,1710991759188,-17063.20568323,0.000529,30]
[319840192,1710991764123,-154.84515485,0.00052799,2]
[319840193,1710991764144,-500.0,0.00052799,120]
[319840194,1710991764164,-208.34681873,0.00052799,4]
[319840195,1710991764184,-69737.36997487,0.000529,30]
[319840286,1710991837969,-966.34962868,0.00044062,15]
[319840288,1710991837978,-637.31748143,0.00046265,15]
[319840290,1710991837987,-221.61525182,0.00052798,120]
[319840292,1710991837996,-303.27056447,0.00052799,120]
[319840294,1710991838006,-500.0,0.00052799,120]
[319840296,1710991838015,-589.42,0.00052799,120]
[319840298,1710991838024,-280.0521873,0.00052799,120]
[319840683,1710991842147,-1000.0,0.00052699,2]
[319840685,1710991842157,-219.9478127,0.00052799,120]
[319840687,1710991842167,-500.0,0.00052799,120]
[319840689,1710991842177,-500.0,0.00052799,120]
[319840691,1710991842186,-1073.25,0.00052799,120]
[319840693,1710991842195,-500.0,0.00052799,120]
[319840695,1710991842205,-500.0,0.00052799,120]
[319840697,1710991842214,-1874.46517775,0.000528,4]
[319840699,1710991842223,-214.05638096,0.00052899,2]
[319840701,1710991842233,-1883.12736429,0.000529,30]
[319840703,1710991842243,-31418.78482367,0.000529,30]
[319840705,1710991842253,-154.84515485,0.000529,120]
[319840707,1710991842262,-480.53204129,0.000529,2]
[319840709,1710991842272,-212.37323911,0.00053,2]
[319840711,1710991842282,-500.0,0.000547,120]
[319840713,1710991842292,-500.0,0.000547,120]
[319840714,1710991842303,-500.0,0.00054794,120]
[319840717,1710991842314,-250.0,0.00054794,120]
[319840719,1710991842324,-686.31,0.00054794,120]
[319840721,1710991842335,-500.0,0.00054794,120]
[319840722,1710991842344,-500.0,0.00054794,120]
[319840724,1710991842354,-500.0,0.00054794,120]
[319840727,1710991842364,-500.0,0.00054794,120]
[319840729,1710991842373,-1832.49,0.00054794,120]
[319840733,1710991842383,-1000.0,0.000548,120]
[319840734,1710991842393,-529.78761368,0.000548,120]
[319840736,1710991842402,-1000.0,0.000549,120]
[319840738,1710991842411,-25194.97067155,0.00055,2]
[319840740,1710991842420,-708.50908394,0.00055,120]
[319841080,1710991846164,-291.49091606,0.00055,120]
[319841082,1710991846173,-566.530656,0.00055,120]
[319841084,1710991846183,-566.530656,0.00055,120]
[319841086,1710991846192,-1000.0,0.000551,120]
[319841088,1710991846201,-1000.0,0.000552,120]
[319841090,1710991846211,-1000.0,0.000553,120]
[319841092,1710991846220,-1000.0,0.000554,120]
[319841094,1710991846229,-500.0,0.00055499,120]
[319841096,1710991846239,-500.0,0.00055499,120]
[319841098,1710991846248,-500.0,0.00055499,120]
[319841100,1710991846257,-500.0,0.00055499,120]
[319841102,1710991846267,-500.0,0.00055499,120]
[319841104,1710991846277,-500.0,0.00055499,120]
[319841106,1710991846286,-500.0,0.00055499,120]
[319841108,1710991846296,-243.8673046,0.00055499,120]
[319841110,1710991846305,-500.0,0.00055499,120]
[319841112,1710991846314,-500.0,0.00055499,120]
[319841114,1710991846323,-2000.0,0.000555,120]
[319841116,1710991846332,-500.0,0.00055538,120]
[319841118,1710991846341,-2145.01443853,0.00055539,61]
[319841120,1710991846351,-501.5043868,0.00055539,120]
[319841121,1710991846359,-833.31,0.00055539,120]
[319841122,1710991846369,-500.0,0.00055539,120]
[319841123,1710991846378,-709.38,0.00055539,120]
[319841124,1710991846387,-567.44578283,0.00055539,120]
[319841125,1710991846398,-500.0,0.00055539,120]
[319841126,1710991846407,-502.78,0.00055539,60]
[319841127,1710991846417,-500.0,0.00055539,120]
[319841128,1710991846426,-500.0,0.00055539,120]
[319841129,1710991846435,-168.12051759,0.00055539,120]
[319841130,1710991846444,-500.0,0.00055539,120]
[319841131,1710991846453,-500.0,0.00055539,120]
[319841132,1710991846462,-5020.55,0.00055539,120]
[319841133,1710991846470,-499.50000071,0.00055539,120]
[319841134,1710991846482,-686.31,0.00055539,120]
[319841135,1710991846491,-1777.47,0.00055539,120]
[319841136,1710991846500,-457.39048984,0.00055539,120]
[319841137,1710991846508,-500.0,0.00055539,120]
[319841138,1710991846518,-1915.32,0.00055539,120]
[319841139,1710991846530,-1058.62,0.00055539,120]
[319841140,1710991846541,-2370.85,0.00055539,120]
[319841141,1710991846551,-500.0,0.00055539,120]
[319841142,1710991846559,-2240.83,0.00055539,120]
[319841143,1710991846568,-1126.81,0.00055539,120]
[319841144,1710991846577,-3699.06,0.00055539,90]
[319841145,1710991846587,-500.0,0.00055539,120]
[319841146,1710991846595,-6335.83,0.00055539,120]
[319841147,1710991846605,-500.0,0.00055539,120]
[319841148,1710991846614,-500.0,0.00055539,120]
[319841149,1710991846623,-759.89,0.00055539,120]
[319841150,1710991846632,-503.09579946,0.00055539,120]
[319841151,1710991846724,-978.46,0.00055539,120]
[319841152,1710991846736,-500.0,0.00055539,120]
[319841153,1710991846746,-934.57,0.00055539,120]
[319841154,1710991846755,-1326.72,0.00055539,120]
[319841155,1710991846763,-500.0,0.00055539,120]
[319841156,1710991846772,-500.0,0.00055539,120]
[319841157,1710991846783,-500.0,0.00055539,120]
[319841158,1710991846792,-589.42,0.00055539,120]
[319841159,1710991846801,-500.0,0.00055539,120]
[319841160,1710991846810,-500.0,0.00055539,120]
[319841161,1710991846819,-500.0,0.00055539,120]
[319841162,1710991846828,-1073.25,0.00055539,120]
[319841164,1710991846838,-500.0,0.00055539,120]
[319841165,1710991846847,-500.0,0.00055539,120]
[319841167,1710991846857,-2000.0,0.000556,120]
[319841168,1710991846867,-500.0,0.00055639,120]
[319841169,1710991846877,-500.0,0.00055639,120]
[319841171,1710991846888,-500.0,0.00055639,120]
[319841173,1710991846900,-500.0,0.00055639,120]
[319841174,1710991846909,-500.0,0.00055639,120]
[319841176,1710991846919,-2000.0,0.000557,120]
[319841178,1710991846929,-500.0,0.000579,120]
[319841180,1710991846939,-833.31,0.00058278,120]
[319841182,1710991846949,-151.619834,0.00058278,120]
[319841183,1710991846959,-500.0,0.00058278,120]
[319841185,1710991846970,-709.38,0.00058278,120]
[319841187,1710991846979,-500.0,0.00058278,120]
[319841190,1710991846990,-502.78,0.00058278,60]
[319841191,1710991847000,-151.0,0.00058278,120]
[319841193,1710991847009,-500.0,0.00058278,120]
[319841195,1710991847019,-500.0,0.00058278,120]
[319841198,1710991847028,-476.82086107,0.00058278,120]
[319841199,1710991847037,-5020.55,0.00058278,120]
[319841201,1710991847047,-686.31,0.00058278,120]
[319841204,1710991847056,-1777.47,0.00058278,120]
[319841205,1710991847065,-500.0,0.00058278,120]
[319841207,1710991847077,-1915.32,0.00058278,120]
[319841210,1710991847086,-1058.62,0.00058278,120]
[319841212,1710991847097,-2370.85,0.00058278,120]
[319841214,1710991847106,-500.0,0.00058278,120]
[319841215,1710991847115,-2240.83,0.00058278,120]
[319841218,1710991847125,-1126.81,0.00058278,120]
[319841220,1710991847135,-3699.06,0.00058278,90]
[319841221,1710991847146,-500.0,0.00058278,120]
[319841223,1710991847155,-6335.83,0.00058278,120]
[319841225,1710991847164,-500.0,0.00058278,120]
[319841227,1710991847173,-500.0,0.00058278,120]
[319841229,1710991847183,-759.89,0.00058278,120]
[319841231,1710991847192,-978.46,0.00058278,120]
[319841233,1710991847201,-500.0,0.00058278,120]
[319841235,1710991847210,-934.57,0.00058278,120]
[319841237,1710991847219,-1326.72,0.00058278,120]
[319841239,1710991847229,-500.0,0.00058278,120]
[319841241,1710991847238,-566.530656,0.00058278,120]
[319841243,1710991847247,-500.0,0.00058278,120]
[319841245,1710991847256,-566.530656,0.00058278,120]
[319841247,1710991847265,-500.0,0.00058278,120]
[319841249,1710991847274,-589.42,0.00058278,120]
[319841252,1710991847284,-500.0,0.00058278,120]
[319841254,1710991847293,-443.42161806,0.00058278,120]
[319841256,1710991847310,-500.0,0.00058278,120]
[319841259,1710991847322,-1073.25,0.00058278,120]
[319841261,1710991847332,-500.0,0.00058278,120]
[319841263,1710991847342,-500.0,0.00058278,120]
[319841265,1710991847351,-500.0,0.00058278,120]
[319841267,1710991847360,-500.0,0.00058379,120]
[319841269,1710991847370,-498.64570499,0.00058379,120]
[319841271,1710991847379,-500.0,0.00058379,120]
[319841273,1710991847389,-501.99497031,0.00058379,120]
[319841275,1710991847399,-299.66092825,0.00058379,120]
[319841277,1710991847409,-18117.5402765,0.00059277,2]
[319841279,1710991847418,-581.9425813,0.0006,120]
[319841281,1710991847427,-669.2506392,0.0006,12]
[319841283,1710991847436,-500.0,0.00061017,120]
[319841285,1710991847447,-833.31,0.00061018,120]
[319841287,1710991847456,-500.0,0.00061018,120]
[319841289,1710991847465,-709.38,0.00061018,120]
[319841291,1710991847476,-500.0,0.00061018,120]
[319841293,1710991847485,-368.74314826,0.00061018,60]
[319841349,1710991848034,-134.03685174,0.00061018,60]
[319841352,1710991848045,-151.0,0.00061018,120]
[319841354,1710991848055,-500.0,0.00061018,120]
[319841356,1710991848066,-500.0,0.00061018,120]
[319841358,1710991848076,-5020.55,0.00061018,120]
[319841360,1710991848086,-686.31,0.00061018,120]
[319841362,1710991848096,-1777.47,0.00061018,120]
[319841364,1710991848106,-500.0,0.00061018,120]
[319841366,1710991848117,-1915.32,0.00061018,120]
[319841368,1710991848126,-1058.62,0.00061018,120]
[319841370,1710991848135,-1192.69314825,0.00061018,120]
[319842842,1710992843113,-864.58370043,0.00051781,4]
[319842843,1710992843136,-482.00791615,0.00051782,2]
[319842844,1710992843155,-154.84515485,0.00051782,2]
[319842845,1710992843175,-7291.93121626,0.00051784,4]
[319842846,1710992843194,-1349.47784639,0.00051795,4]
[319842847,1710992843215,-155.31879382,0.00051796,4]
[319842848,1710992843235,-2054.23852696,0.00052699,2]
[319842849,1710992843260,-155.59443363,0.00052796,4]
[319842850,1710992843279,-551.16066515,0.00052796,4]
[319842851,1710992843301,-170.33664032,0.00052796,4]
[319842852,1710992843320,-155.80068588,0.00052796,4]
[319842853,1710992843342,-332.89510471,0.00052796,4]
[319842854,1710992843362,-1425.87849959,0.00052796,4]
[319842855,1710992843382,-1083.67520015,0.00052796,4]
[319842856,1710992843403,-187.5384845,0.00052796,2]
[319842857,1710992843425,-748.56889485,0.00052796,4]
[319842858,1710992843446,-237.56283004,0.00052796,120]
[319842859,1710992843466,-1097.60906143,0.00052796,4]
[319842860,1710992843488,-880.22312598,0.00052796,4]
[319842861,1710992843512,-154.84515485,0.00052797,4]
[319842862,1710992843533,-1956.84789488,0.00052797,4]
[319842863,1710992843552,-1527.72,0.00052798,120]
[319842864,1710992843572,-500.0,0.00052798,120]
[319842865,1710992843592,-500.0,0.00052798,120]
[319842866,1710992843612,-500.0,0.00052798,120]
[319842867,1710992843631,-500.0,0.00052798,120]
[319842868,1710992843651,-320.56927828,0.00052798,120]
[319842869,1710992843671,-500.0,0.00052798,120]
[319842870,1710992843691,-500.0,0.00052798,120]
[319842871,1710992843711,-500.0,0.00052798,120]
[319842872,1710992843731,-634.17227469,0.00052798,120]
[319842873,1710992843755,-500.0,0.00052798,120]
[319842874,1710992843775,-500.0,0.00052798,120]
[319842875,1710992843796,-481.9671792,0.00052798,120]
[319842876,1710992843817,-500.0,0.00052798,120]
[319842877,1710992843837,-500.0,0.00052798,120]
[319842878,1710992843857,-298.82753262,0.00052798,2]
[319842879,1710992843876,-300.18974684,0.00052798,2]
[319842880,1710992843898,-500.0,0.00052798,120]
[319842881,1710992843918,-611.85,0.00052798,120]
[319842882,1710992843937,-500.0,0.00052798,120]
[319842883,1710992843957,-500.0,0.00052798,120]
[319842884,1710992843978,-500.0,0.00052798,2]
[319842885,1710992844003,-500.0,0.00052798,120]
[319842886,1710992844023,-500.0,0.00052798,120]
[319842887,1710992844043,-500.0,0.00052798,120]
[319842888,1710992844064,-500.0,0.00052798,120]
[319842889,1710992844084,-500.0,0.00052798,120]
[319842890,1710992844105,-523.75,0.00052798,120]
[319842891,1710992844125,-500.0,0.00052798,120]
[319842892,1710992844146,-3141.4,0.00052798,120]
[319842893,1710992844168,-6786.49,0.00052798,120]
[319842894,1710992844191,-162.73374899,0.00052798,120]
[319842895,1710992844212,-500.0,0.00052798,120]
[319842896,1710992844232,-500.0,0.00052798,120]
[319842897,1710992844260,-512.87,0.00052798,120]
[319842898,1710992844370,-500.0,0.00052798,120]
[319842899,1710992844392,-500.0,0.00052798,120]
[319842900,1710992844413,-500.0,0.00052798,120]
[319842901,1710992844433,-500.0,0.00052798,120]
[319842902,1710992844453,-500.0,0.00052798,120]
[319842903,1710992844474,-200.7097896,0.00052798,120]
[319842904,1710992844496,-500.87592396,0.00052798,120]
[319842905,1710992844517,-500.0,0.00052798,120]
[319842906,1710992844538,-500.0,0.00052798,120]
[319842907,1710992844559,-1601.61,0.00052798,120]
[319842908,1710992844579,-500.0,0.00052798,120]
[319842909,1710992844600,-500.0,0.00052798,120]
[319842910,1710992844620,-500.0,0.00052798,120]
[319842911,1710992844640,-500.0,0.00052798,120]
[319842912,1710992844661,-500.0,0.00052798,120]
[319842913,1710992844682,-500.0,0.00052798,120]
[319842914,1710992844704,-500.0,0.00052798,120]
[319842915,1710992844728,-500.0,0.00052799,120]
[319842916,1710992844750,-754.55329652,0.000528,2]
[319842917,1710992844769,-174.15091222,0.00052899,120]
[319842918,1710992844790,-262.35665096,0.00052899,120]
[319842919,1710992844812,-263.90515874,0.00052899,120]
[319842920,1710992844832,-116591.20947226,0.000529,30]
[319842921,1710992844855,-500.0,0.00054793,120]
[319842922,1710992844876,-500.0,0.00054793,120]
[319842923,1710992844897,-500.0,0.00054793,120]
[319842924,1710992844916,-1372.15,0.00054793,120]
[319842925,1710992844936,-1539.35,0.00054793,120]
[319842926,1710992844956,-269.28797849,0.00054793,120]
[319842927,1710992844976,-500.0,0.00054794,120]
[319842928,1710992844998,-500.0,0.00054794,120]
[319842929,1710992845020,-500.0,0.00054794,120]
[319842930,1710992845039,-500.0,0.00054794,120]
[319842931,1710992845060,-500.0,0.00054795,120]
[319842932,1710992845080,-500.0,0.00054795,120]
[319842933,1710992845100,-423.16019138,0.00054795,120]
[319842934,1710992845120,-591.15,0.00054999,120]
[319842935,1710992845140,-500.0,0.00054999,120]
[319842936,1710992845162,-827.63,0.00054999,120]
[319842937,1710992845184,-499.14203532,0.00054999,120]
[319842938,1710992845207,-632.39,0.00054999,60]
[319842939,1710992845227,-512.17143991,0.00054999,120]
[319842940,1710992845250,-500.0,0.00054999,120]
[319842941,1710992845270,-500.0,0.00054999,120]
[319842942,1710992845290,-500.0,0.00054999,120]
[319842943,1710992845310,-6340.42,0.00054999,120]
[319842944,1710992845330,-500.0,0.00054999,120]
[319842945,1710992845352,-1966.45,0.00054999,120]
[319842946,1710992845372,-2536.73,0.00054999,120]
[319842947,1710992845392,-3278.08,0.00054999,120]
[319842948,1710992845412,-250.0,0.00054999,120]
[319842949,1710992845433,-500.0,0.00055537,120]
[319842950,1710992845454,-1527.72,0.00055538,120]
[319842951,1710992845474,-500.0,0.00055538,120]
[319842952,1710992845496,-500.0,0.00055538,120]
[319842953,1710992845516,-500.0,0.00055538,120]
[319842954,1710992845536,-500.0,0.00055538,120]
[319842955,1710992845557,-500.0,0.00055538,120]
[319842956,1710992845578,-502.24447583,0.00055538,120]
[319842957,1710992845599,-500.0,0.00055538,120]
[319842958,1710992845619,-500.0,0.00055538,120]
[319842959,1710992845642,-500.0,0.00055538,120]
[319842960,1710992845662,-611.85,0.00055538,120]
[319842961,1710992845682,-500.0,0.00055538,120]
[319842962,1710992845706,-500.0,0.00055538,120]
[319842963,1710992845726,-252.36219256,0.00055538,120]
[319842964,1710992845749,-500.0,0.00055538,120]
[319842965,1710992845770,-500.0,0.00055538,120]
[319842966,1710992845792,-500.0,0.00055538,120]
[319842967,1710992845815,-503.42702599,0.00055538,120]
[319842968,1710992845837,-523.75,0.00055538,120]
[319842969,1710992845858,-500.0,0.00055538,120]
[319842970,1710992845879,-500.0,0.00055538,120]
[319842971,1710992845901,-3141.4,0.00055538,120]
[319842972,1710992845923,-6786.49,0.00055538,120]
[319842973,1710992845944,-500.0,0.00055538,120]
[319842974,1710992845966,-512.87,0.00055538,120]
[319842975,1710992845987,-184.93998739,0.00055538,120]
[319842976,1710992846013,-500.0,0.00055538,120]
[319842977,1710992846034,-594.28857735,0.00055538,120]
[319842978,1710992846054,-500.0,0.00055538,120]
[319842979,1710992846074,-500.0,0.00055538,120]
[319842980,1710992846095,-500.0,0.00055538,120]
[319842981,1710992846115,-500.0,0.00055538,120]
[319842982,1710992846136,-1601.61,0.00055538,120]
[319842983,1710992846155,-500.0,0.00055538,120]
[319842984,1710992846176,-500.0,0.00055538,120]
[319842985,1710992846196,-500.0,0.00055538,120]
[319842986,1710992846215,-500.0,0.00055538,120]
[319842987,1710992846235,-500.0,0.00055538,120]
[319842988,1710992846258,-500.0,0.00055539,120]
[319842989,1710992846278,-500.0,0.00055639,120]
[319842990,1710992846299,-500.0,0.00057533,120]
[319842991,1710992846319,-500.0,0.00057533,120]
[319842992,1710992846339,-500.0,0.00057533,120]
[319842993,1710992846436,-500.0,0.00057533,120]
[319842994,1710992846458,-1372.15,0.00057533,120]
[319842995,1710992846479,-1539.35,0.00057533,120]
[319842996,1710992846501,-591.15,0.00057739,120]
[319842997,1710992846522,-500.0,0.00057739,120]
[319842998,1710992846541,-827.63,0.00057739,120]
[319842999,1710992846561,-632.39,0.00057739,60]
[319843000,1710992846581,-500.0,0.00057739,120]
[319843001,1710992846601,-500.0,0.00057739,120]
[319843002,1710992846620,-6340.42,0.00057739,120]
[319843003,1710992846640,-500.0,0.00057739,120]
[319843004,1710992846659,-1966.45,0.00057739,120]
[319843005,1710992846680,-2536.73,0.00057739,120]
[319843006,1710992846699,-3278.08,0.00057739,120]
[319843007,1710992846721,-250.0,0.00057739,120]
[319843008,1710992846742,-4920.3,0.00058277,90]
[319843009,1710992846767,-500.0,0.00058277,120]
[319843010,1710992846788,-1149.17,0.00058277,120]
[319843011,1710992846811,-1038.1,0.00058277,120]
[319843012,1710992846832,-500.0,0.00058277,120]
[319843013,1710992846855,-1896.23,0.00058277,120]
[319843014,1710992846876,-817.79,0.00058277,120]
[319843015,1710992846896,-1527.72,0.00058278,120]
[319843016,1710992846916,-500.0,0.00058278,120]
[319843017,1710992846935,-500.0,0.00058278,120]
[319843018,1710992846956,-500.0,0.00058278,120]
[319843019,1710992846976,-500.0,0.00058278,120]
[319843020,1710992846995,-500.0,0.00058278,120]
[319843021,1710992847016,-500.0,0.00058278,120]
[319843022,1710992847036,-500.0,0.00058278,120]
[319843023,1710992847057,-611.85,0.00058278,120]
[319843024,1710992847077,-415.48670884,0.00058278,120]
[319843025,1710992847098,-500.0,0.00058278,120]
[319843026,1710992847118,-500.0,0.00058278,120]
[319843027,1710992847138,-500.0,0.00058278,120]
[319843028,1710992847160,-500.0,0.00058278,120]
[319843029,1710992847180,-523.75,0.00058278,120]
[319843030,1710992847199,-500.0,0.00058278,120]
[319843031,1710992847219,-500.0,0.00058278,120]
[319843032,1710992847239,-3141.4,0.00058278,120]
[319843033,1710992847263,-6786.49,0.00058278,120]
[319843034,1710992847283,-500.0,0.00058278,120]
[319843035,1710992847304,-512.87,0.00058278,120]
[319843036,1710992847324,-500.0,0.00058278,120]
[319843037,1710992847344,-500.0,0.00058278,120]
[319843038,1710992847363,-500.0,0.00058278,120]
[319843039,1710992847384,-500.0,0.00058278,120]
[319843040,1710992847404,-500.0,0.00058278,120]
[319843041,1710992847424,-1601.61,0.00058278,120]
[319843042,1710992847445,-500.0,0.00058278,120]
[319843043,1710992847465,-500.0,0.00058278,120]
[319843044,1710992847485,-500.0,0.00058278,120]
[319843045,1710992847509,-500.0,0.00058278,120]
[319843046,1710992847529,-492.27463437,0.00058278,120]
[319843047,1710992847550,-500.0,0.00058378,120]
[319843048,1710992847569,-597.004215,0.00059277,2]
[319843049,1710992847589,-24900.0,0.00059277,2]
[319843050,1710992847609,-500.0,0.00060273,120]
[319843051,1710992847629,-500.0,0.00060273,120]
[319843052,1710992847650,-500.0,0.00060273,120]
[319843053,1710992847671,-500.0,0.00060273,120]
[319843054,1710992847691,-1372.15,0.00060273,120]
[319843055,1710992847710,-1539.35,0.00060273,120]
[319843056,1710992847732,-591.15,0.00060479,120]
[319843057,1710992847757,-500.0,0.00060479,120]
[319843058,1710992847778,-827.63,0.00060479,120]
[319843059,1710992847800,-632.39,0.00060479,60]
[319843060,1710992847822,-500.0,0.00060479,120]
[319843061,1710992847843,-500.0,0.00060479,120]
[319843062,1710992847864,-6340.42,0.00060479,120]
[319843063,1710992847884,-500.0,0.00060479,120]
[319843064,1710992847919,-1966.45,0.00060479,120]
[319843065,1710992847940,-634.29225187,0.00060479,120]
[319843066,1710992848052,-1902.43774813,0.00060479,120]
[319843067,1710992848072,-3278.08,0.00060479,120]
[319843068,1710992848091,-250.0,0.00060479,120]
[319843069,1710992848110,-269.65828487,0.00061016,2]
[319843070,1710992848130,-210.51063616,0.00061016,7]
[319843071,1710992848150,-264.87952772,0.00061016,2]
[319843072,1710992848169,-202.03647067,0.00061016,7]
[319843073,1710992848189,-165.93181549,0.00061016,7]
[319843074,1710992848208,-1527.72,0.00061017,120]
[319843075,1710992848227,-500.0,0.00061017,120]
[319843076,1710992848251,-500.0,0.00061017,120]
[319843077,1710992848357,-500.0,0.00061017,120]